bitfinex/quotes_SOLUSD_20240905
["timestamp","ask_amount","ask_price","bid_price","bid_amount"]
[1725563820872,7.6871,130.09,130.05,7.6888]
[1725563821362,7.6865,130.1,130.06,26.9105]
[1725563823455,7.686,130.11,130.07,7.688]
[1725563823969,7.6865,130.1,130.06,26.9101]
[1725563824669,1.92188496,130.09,130.03,24.41614661]
[1725563824851,1.92188496,130.09,130.03,19.225]
[1725563825040,21.92188496,130.09,130.03,19.225]
[1725563825663,7.6888,130.06,130.03,19.225]
[1725563825884,9.61201694,130.05,130.01,5.19283014]
[1725563826072,7.6897,130.05,130.01,12.88413014]
[1725563826271,7.6888,130.06,130.0,168.219941]
[1725563826574,7.6888,130.06,130.02,7.6909]
[1725563828681,7.6882,130.07,130.03,1.53786333]
[1725563828988,18.45780351,130.1,130.04,19.2238]
[1725563829169,18.45780351,130.1,130.03,1.53786333]
[1725563829170,6.1136,130.11,130.03,71.467]
[1725563829362,6.1136,130.11,130.06,19.2216]
[1725563829562,13.7994,130.11,130.07,7.6879]
[1725563831288,1.92163475,130.1,130.06,19.2216]
[1725563831489,9.60833475,130.1,130.06,19.2216]
[1725563831779,7.6874,130.09,130.05,7.6888]
[1725563833376,7.6884,130.07,130.03,26.9154]
[1725563833579,7.6878,130.08,130.04,7.6897]
[1725563835794,7.6882,130.07,130.03,26.9154]
[1725563836163,1.92221286,130.1,130.03,19.2251]
[1725563836164,9.61108467,130.06,130.03,19.2251]
[1725563836363,7.6883,130.07,130.03,26.9156]
[1725563836600,7.6893,130.05,130.01,7.6914]
[1725563836818,9.61258094,130.04,130.0,175.911641]
[1725563837097,7.6893,130.06,130.01,7.6914]
[1725563837281,1.33798554,130.03,130.01,7.6914]
[1725563837589,1.92237823,130.05,130.01,7.6914]
[1725563837809,7.69,130.04,130.0,175.911841]
[1725563837971,1.92278906,130.03,130.0,148.990441]
[1725563838175,1.33805773,130.04,130.0,148.990441]
[1725563838774,7.6908,130.03,130.0,148.990441]
[1725563839589,9.61288313,130.04,130.0,156.682541]
[1725563839896,16.00377854,130.05,130.01,1.53822283]
[1725563840076,27.69,130.04,130.0,156.682541]
[1725563840270,29.61260672,130.04,130.0,156.682541]
[1725563840495,27.69,130.04,130.0,156.682541]
[1725563840698,29.61263406,130.04,130.0,156.682541]
[1725563841801,27.69,130.04,130.0,156.682541]
[1725563842303,1.33675621,130.03,130.0,156.682541]
[1725563844516,9.02745621,130.03,130.0,148.990441]
[1725563844699,7.6917,130.01,130.0,148.990441]
[1725563844878,9.61430874,130.02,130.0,148.990441]
[1725563845701,7.6913,130.02,130.0,148.990441]
[1725563847791,16.16952759,130.01,130.0,132.323841]
[1725563847992,16.16952759,130.01,129.95,0.8505267]
[1725563847993,7.6946,129.96,129.95,2.67e-05]
[1725563848201,7.6985,129.9,129.85,265.701]
[1725563848514,7.6985,129.9,129.85,7.701]
[1725563848689,1.92483403,129.89,129.84,13.9533]
[1725563848882,7.6982,129.91,129.86,7.7005]
[1725563849311,1.92461119,129.91,129.85,19.2523]
[1725563849614,7.6978,129.91,129.86,7.7004]
[1725563850183,1.92474801,129.92,129.88,7.6993]
[1725563850412,1.92432597,129.96,129.91,6.5046]
[1725563850616,57.89168044,129.98,129.94,7.6958]
[1725563850983,57.89168044,129.98,129.93,26.9365]
[1725563851398,1.9235936,129.97,129.9,15.2801]
[1725563852116,21.9235936,129.97,129.9,15.2801]
[1725563852406,29.6177936,129.97,129.91,7.6976]
[1725563852612,7.6948,129.96,129.91,7.6976]
[1725563853500,9.61934618,129.95,129.9,22.9782]
[1725563854011,9.61881826,129.96,129.91,7.6976]
[1725563854317,1.92368621,129.97,129.93,7.6963]
[1725563854519,57.89168044,129.98,129.93,7.6963]
[1725563854884,57.89168044,129.98,129.93,19.2404]
[1725563855084,57.89168044,129.98,129.95,7.6952]
[1725563855287,57.89168044,129.98,129.94,7.6956]
[1725563855514,57.89168044,129.98,129.93,26.9367]
[1725563856788,57.89168044,129.98,129.95,7.6951]
[1725563857096,57.89168044,129.98,129.94,7.6958]
[1725563858723,9.6180833,129.97,129.92,7.6965]
[1725563859121,1.9234833,129.97,129.9,34.5247]
[1725563859418,7.6948,129.96,129.91,7.6974]
[1725563859603,21.9234833,129.97,129.9,34.5247]
[1725563859604,9.6176833,129.97,129.92,7.697]
[1725563860100,7.6942,129.97,129.93,7.6964]
[1725563861226,57.89168044,129.98,129.94,7.6957]
[1725563861409,57.89168044,129.98,129.95,7.6948]
[1725563861610,57.89168044,129.98,129.94,19.239]
[1725563861611,1.92351008,129.97,129.94,19.239]
[1725563862516,1.33741753,129.96,129.94,19.239]
[1725563862717,1.33741753,129.96,129.92,7.6968]
[1725563863514,1.33741753,129.96,129.93,7.6961]
[1725563863934,1.33741753,129.96,129.94,7.6957]
[1725563865030,1.33741753,129.96,129.95,26.9333]
[1725563867435,1.33741753,129.96,129.91,50.0]
[1725563867436,65.58538044,129.98,129.94,7.6957]
[1725563867738,65.58538044,129.98,129.93,7.6962]
[1725563867739,9.61746857,129.97,129.93,7.6962]
[1725563868735,9.61746857,129.97,129.93,7.6961]
[1725563869317,7.6941,129.97,129.93,7.6961]
[1725563869521,57.89168044,129.98,129.93,19.2397]
[1725563871437,57.89168044,129.98,129.95,7.6952]
[1725563873446,65.58528044,129.98,129.94,7.6954]
[1725563873752,57.89168044,129.98,129.94,7.6954]
[1725563874358,57.89168044,129.98,129.95,9.23375946]
[1725563874644,57.89168044,129.98,129.95,7.695]
[1725563875953,65.58518044,129.98,129.94,7.6956]
[1725563877315,1.33746669,129.97,129.94,7.6956]
[1725563879055,1.33746669,129.97,129.95,7.6951]
[1725563880342,1.33746669,129.97,129.96,26.9312]
[1725563880539,1.92285495,130.06,129.97,50.0]
[1725563880736,6.0041,130.08,130.02,7.6907]
[1725563880737,9.61067424,130.07,130.02,7.6907]
[1725563880938,1.33676956,130.05,130.03,7.6901]
[1725563881456,9.61050033,130.07,130.03,7.6901]
[1725563881659,1.92220744,130.08,130.04,7.6897]
[1725563882230,1.33658284,130.07,130.04,7.6897]
[1725563882550,1.33658284,130.07,130.05,1.53776549]
[1725563882940,1.33658284,130.07,130.05,9.22696549]
[1725563883440,1.33658284,130.07,130.05,1.5376009]
[1725563883638,1.33658284,130.07,130.05,9.2268009]
[1725563884263,1.33658284,130.07,130.06,9.22618718]
[1725563885138,1.33658284,130.07,130.04,19.2247]
[1725563885348,1.33658284,130.07,130.04,7.6898]
[1725563885544,7.6892,130.06,130.0,6.5031]
[1725563885764,7.6892,130.06,130.01,7.6913]
[1725563885938,7.6892,130.06,130.02,7.691]
[1725563886562,7.6895,130.05,130.01,7.6915]
[1725563886738,1.92255922,130.04,129.99,16.6005]
[1725563887051,1.92255922,130.04,129.96,23.4048]
[1725563887052,7.6918,130.01,129.96,23.4048]
[1725563888037,7.6923,130.0,129.96,15.7102]
[1725563888359,7.6918,130.01,129.96,23.4048]
[1725563889540,7.693,129.99,129.94,19.2386]
[1725563889742,7.6953,129.95,129.91,19.2438]
[1725563889943,1.92331974,129.98,129.91,19.2438]
[1725563890257,7.6947,129.96,129.91,19.2438]
[1725563890642,7.6947,129.96,129.91,26.9412]
[1725563890836,7.6941,129.97,129.92,7.697]
[1725563891058,1.92394399,129.99,129.93,1.53896579]
[1725563891252,9.61724399,129.99,129.93,7.6963]
[1725563891436,20.0,129.98,129.93,7.6963]
[1725563891638,20.0,129.98,129.94,7.6957]
[1725563891961,1.9234995,130.02,129.98,26.9258]
[1725563892166,7.6903,130.04,129.99,9.23081565]
[1725563892468,9.61347041,130.03,129.99,1.53831565]
[1725563892769,9.10128284,130.07,129.98,19.2324]
[1725563892770,7.6911,130.02,129.98,19.2324]
[1725563893154,7.6906,130.03,129.98,26.9258]
[1725563894376,20.0,130.02,129.98,26.9258]
[1725563894861,29.61397213,130.02,129.98,19.2324]
[1725563895068,27.6911,130.02,129.98,19.2324]
[1725563896969,1.92303394,130.01,129.98,19.2324]
[1725563897265,27.6911,130.02,129.98,19.2324]
[1725563899661,7.6923,130.0,129.96,16.2206]
[1725563899962,7.6918,130.01,129.97,1.53865215]
[1725563900263,9.61483069,130.01,129.96,23.9148]
[1725563900470,7.6918,130.01,129.96,23.9148]
[1725563900864,7.6918,130.01,129.97,9.23222447]
[1725563901046,20.0,130.02,129.97,9.23222447]
[1725563901047,27.6912,130.02,129.97,7.6938]
[1725563901247,7.6917,130.01,129.97,7.6938]
[1725563901456,7.6917,130.01,129.97,9.2321993]
[1725563902347,7.6917,130.01,129.97,7.6938]
[1725563902542,1.33735857,130.0,129.96,23.915]
[1725563903568,1.33735857,130.0,129.97,26.9286]
[1725563903949,1.33735857,130.0,129.98,7.6933]
[1725563904865,1.33735857,130.0,129.98,7.6934]
[1725563908676,1.33735857,130.0,129.97,19.2351]
[1725563908882,9.02965857,130.0,129.97,19.2351]
[1725563909792,1.33735857,130.0,129.97,26.929]
[1725563909971,1.33735857,130.0,129.98,7.6934]
[1725563912183,1.33735857,130.0,129.99,9.23113921]
[1725563912986,1.33735857,130.0,129.98,26.9254]
[1725563913586,9.02965857,130.0,129.97,7.694]
[1725563913886,1.33735857,130.0,129.97,7.694]
[1725563915674,9.02965857,130.0,129.97,7.694]
[1725563916878,7.6938,129.98,129.94,7.6954]
[1725563919265,7.6931,129.99,129.95,9.23381788]
[1725563919468,7.6931,129.99,129.94,26.9337]
[1725563919469,7.694,129.97,129.94,26.9337]
[1725563919672,7.694,129.97,129.94,19.2382]
[1725563919873,7.6939,129.98,129.94,26.9338]
[1725563920692,1.92344395,129.97,129.93,15.3685]
[1725563920894,7.6954,129.95,129.91,33.5532]
[1725563921057,41.15726333,129.99,129.87,50.0]
[1725563921058,1.92388657,129.94,129.87,6.14]
[1725563921257,7.6982,129.9,129.87,29.7991]
[1725563921459,1.33756831,129.93,129.87,22.0991]
[1725563921686,1.33756831,129.93,129.88,19.2482]
[1725563921856,7.6981,129.91,129.87,29.7988]
[1725563922259,3.26195627,129.93,129.87,15.9591]
[1725563922260,7.6982,129.9,129.87,15.9591]
[1725563922678,7.6976,129.91,129.87,23.6589]
[1725563923490,7.6982,129.9,129.86,7.7003]
[1725563923696,7.6988,129.89,129.85,26.9528]
[1725563923868,7.6988,129.89,129.85,19.2518]
[1725563924685,7.6988,129.89,129.84,23.0054]
[1725563924686,7.6997,129.88,129.84,15.3039]
[1725563925061,1.92487956,129.91,129.84,34.5576]
[1725563925885,7.6982,129.9,129.85,7.701]
[1725563926489,1.92472934,129.89,129.84,15.3039]
[1725563926669,7.6982,129.9,129.86,26.9511]
[1725563926864,9.62291927,129.9,129.86,19.2507]
[1725563927071,20.0,129.91,129.86,19.2507]
[1725563927265,7.6974,129.92,129.87,7.6995]
[1725563927463,7.6974,129.92,129.88,9.23874639]
[1725563927772,20.0,129.93,129.89,7.6984]
[1725563927963,20.0,129.93,129.88,19.2482]
[1725563928166,9.62152365,129.92,129.88,19.2482]
[1725563928387,7.6971,129.92,129.88,26.9475]
[1725563928773,7.6965,129.93,129.89,7.6987]
[1725563928976,20.0,129.92,129.89,7.6987]
[1725563929772,1.92426138,129.95,129.91,19.2426]
[1725563929978,7.6956,129.95,129.91,26.94]
[1725563930173,7.6956,129.95,129.92,1.53922622]
[1725563930975,27.6948,129.96,129.93,1.53916377]
[1725563931193,7.6948,129.96,129.93,1.53916377]
[1725563931970,7.6948,129.96,129.92,7.697]
[1725563932172,1.92395472,129.98,129.91,26.9398]
[1725563932390,7.695,129.96,129.91,26.9398]
[1725563934594,7.695,129.96,129.92,7.6969]
[1725563936874,7.695,129.96,129.92,7.42939651]
[1725563937079,7.695,129.96,129.92,7.19800736]
[1725563937682,9.03292926,129.95,129.91,26.9398]
[1725563937979,9.03292926,129.95,129.91,19.2426]
[1725563938509,9.03292926,129.95,129.9,15.8706]
[1725563938510,9.61971078,129.94,129.9,15.8706]
[1725563938811,7.6959,129.94,129.9,15.8706]
[1725563939016,9.03292926,129.95,129.9,15.8706]
[1725563939387,7.6959,129.94,129.91,7.6975]
[1725563939915,9.03292926,129.95,129.91,7.6975]
[1725563940116,7.6959,129.94,129.91,7.6975]
[1725563940403,7.6965,129.93,129.9,15.8706]
[1725563940807,7.6965,129.93,129.9,23.5687]
[1725563941007,7.696,129.94,129.9,23.5687]
[1725563941921,7.6967,129.93,129.9,15.8706]
[1725563943497,7.6971,129.92,129.9,15.8706]
[1725563943695,7.6976,129.91,129.87,23.2742]
[1725563946302,7.6974,129.92,129.88,9.23883369]
[1725563946919,7.6974,129.92,129.88,7.6992]
[1725563947301,1.92445851,129.91,129.87,23.2742]
[1725563947505,21.92455363,129.93,129.87,23.2742]
[1725563947694,7.6978,129.91,129.87,23.2742]
[1725563948423,7.6988,129.89,129.86,19.2503]
[1725563948614,7.6983,129.9,129.86,26.9508]
[1725563949212,7.6988,129.89,129.86,26.9508]
[1725563950011,7.6982,129.9,129.87,1.53976291]
[1725563950321,7.6977,129.91,129.88,1.53965498]
[1725563950619,7.6977,129.91,129.87,7.6998]
[1725563950918,7.6986,129.9,129.86,26.9507]
[1725563952130,7.6989,129.89,129.86,26.9507]
[1725563952423,7.6983,129.9,129.86,26.9507]
[1725563954928,9.62346852,129.89,129.86,19.2503]
[1725563955111,7.6988,129.89,129.86,19.2503]
[1725563955929,7.6983,129.9,129.86,26.9504]
[1725563956108,7.6978,129.91,129.87,7.6999]
[1725563956515,7.6969,129.93,129.88,1.53956635]
[1725563956809,7.6969,129.93,129.89,15.6644]
[1725563957010,7.6969,129.93,129.9,1.53936062]
[1725563957212,9.62045794,129.94,129.9,9.00602098]
[1725563957534,1.33752926,129.95,129.92,7.697]
[1725563957844,7.695,129.96,129.92,7.697]
[1725563958136,7.695,129.96,129.92,7.05373021]
[1725563958137,1.33688716,129.94,129.92,7.05373021]
[1725563958313,1.33688716,129.94,129.91,7.6974]
[1725563960543,1.33688716,129.94,129.92,7.697]
[1725563961238,1.33688716,129.94,129.93,7.6964]
[1725563961628,1.33688716,129.94,129.93,26.9375]
[1725563964626,1.33688716,129.94,129.93,19.2411]
[1725563964833,1.33688716,129.94,129.92,7.6967]
[1725563965648,1.33688716,129.94,129.9,19.2442]
[1725563965944,9.03308716,129.94,129.9,26.9419]
[1725563966951,9.03308716,129.94,129.91,7.6976]
[1725563968027,1.33688716,129.94,129.91,7.6976]
[1725563968241,1.33688716,129.94,129.92,1.53921828]
[1725563968433,1.33688716,129.94,129.92,9.23612255]
[1725563969445,1.33688716,129.94,129.93,9.23542793]
[1725563969860,1.33688716,129.94,129.93,7.6964]
[1725563971858,1.33688716,129.94,129.92,26.9392]
[1725563972669,1.33688716,129.94,129.89,56.94880072]
[1725563972670,7.6965,129.93,129.89,37.70150072]
[1725563972841,7.6965,129.93,129.89,45.39990072]
[1725563973459,7.6971,129.92,129.89,45.39990072]
[1725563974056,7.6977,129.91,129.89,2.79120072]
[1725563974259,7.698,129.91,129.89,2.79120072]
[1725563975567,7.6679,129.91,129.89,2.79120072]
[1725563975767,9.62271029,129.9,129.89,2.79120072]
[1725563975963,7.6982,129.9,129.89,2.79120072]
[1725563976568,7.6979,129.91,129.89,2.79120072]
[1725563976764,7.6982,129.9,129.89,2.79120072]
[1725563978376,9.03485965,129.9,129.89,2.79120072]
[1725563978672,1.33665965,129.9,129.89,2.79120072]
[1725563979469,1.33665965,129.9,129.87,7.6999]
[1725563980073,10.95988397,129.9,129.86,7.7004]
[1725563981956,7.7007,129.86,129.82,27.8092267]
[1725563982156,7.7023,129.83,129.82,0.8505267]
[1725563983164,27.7023,129.83,129.82,0.8505267]
[1725563984280,27.7023,129.83,129.74,7.7075]
[1725563984281,7.7049,129.79,129.74,7.7075]
[1725563984572,7.7049,129.79,129.74,26.9762]
[1725563984875,7.7045,129.8,129.71,16.2212]
[1725563985048,7.7045,129.8,129.75,7.7066]
[1725563985249,7.7045,129.8,129.73,69.2702]
[1725563985476,9.6305767,129.8,129.75,7.707]
[1725563985654,7.7045,129.8,129.76,7.7064]
[1725563986272,7.7047,129.79,129.75,19.2673]
[1725563986448,7.7037,129.81,129.75,19.2673]
[1725563986644,21.92622161,129.82,129.77,7.7059]
[1725563986645,29.62952161,129.82,129.77,7.7059]
[1725563987049,27.7033,129.82,129.77,24.1935]
[1725563987277,27.7033,129.82,129.78,7.7053]
[1725563988681,27.7033,129.82,129.77,35.752]
[1725563988682,7.7038,129.81,129.77,35.752]
[1725563988862,1.92613813,129.8,129.77,19.2644]
[1725563989367,9.63033813,129.8,129.77,19.2644]
[1725563989766,7.7042,129.8,129.77,19.2644]
[1725563990361,7.7036,129.81,129.77,26.9702]
[1725563990675,1.926186,129.8,129.77,26.9702]
[1725563992277,1.926186,129.8,129.77,26.73852692]
[1725563992873,7.7036,129.81,129.77,26.73852692]
[1725563993985,6.4247,129.79,129.7,15.0]
[1725563994194,6.4247,129.79,129.7,13.89332384]
[1725563994195,21.92746829,129.78,129.7,13.89332384]
[1725563994517,7.7122,129.67,129.61,7.7151]
[1725563994669,1.92847313,129.66,129.6,0.1]
[1725563995069,7.7143,129.63,129.6,0.1]
[1725563995476,7.7136,129.65,129.6,0.1]
[1725563995786,1.92862966,129.66,129.6,0.1]
[1725563995989,20.49373093,129.68,129.63,7.7142]
[1725563996292,21.92805968,129.67,129.6,0.1]
[1725563996472,7.7138,129.64,129.6,0.1]
[1725563996662,20.0,129.67,129.6,7.8154]
[1725563996867,21.92861517,129.67,129.62,19.287]
[1725563997175,1.92816611,129.67,129.62,19.287]
[1725563997385,1.92816611,129.67,129.62,27.0013]
[1725563997682,1.92816611,129.67,129.62,27.0018]
[1725563997868,21.92816611,129.67,129.63,7.7137]
[1725563998299,21.92816611,129.67,129.64,7.7134]
[1725563998502,1.92816611,129.67,129.65,7.7128]
[1725563998680,10.85415925,129.68,129.66,7.7124]
[1725563999094,12.19340615,129.68,129.66,7.7124]
[1725563999408,12.19340615,129.68,129.67,7.7118]
[1725563999698,32.19340615,129.68,129.66,7.7123]
[1725563999884,32.19340615,129.68,129.67,7.7118]
[1725564000073,10.85415925,129.68,129.67,7.7118]
[1725564001689,7.7047,129.79,129.69,37.2134]
[1725564001879,1.9269848,129.78,129.69,37.2134]
[1725564002206,1.9269848,129.78,129.73,26.9782]
[1725564002705,1.9269848,129.78,129.73,19.2705]
[1725564003002,1.33837463,129.77,129.73,19.2705]
[1725564003897,1.33837463,129.77,129.76,7.7065]
[1725564004103,1.33837463,129.77,129.75,7.707]
[1725564004401,1.92662992,129.76,129.65,6.1031]
[1725564004914,7.7089,129.72,129.67,7.7117]
[1725564005117,21.92768449,129.71,129.67,7.7117]
[1725564005786,20.0,129.71,129.68,7.7112]
[1725564005991,7.7072,129.75,129.65,56.1031]
[1725564006206,20.0,129.74,129.65,56.1031]
[1725564006505,20.0,129.75,129.71,26.983]
[1725564007593,20.0,129.75,129.72,7.7088]
[1725564008306,20.0,129.76,129.72,7.7088]
[1725564008504,21.92685473,129.76,129.72,7.7088]
[1725564008707,1.33837463,129.77,129.76,7.7065]
[1725564009391,1.33837463,129.77,129.76,19.2663]
[1725564009615,1.33837463,129.77,129.76,26.9728]
[1725564010302,1.33837463,129.77,129.73,25.6743]
[1725564010485,1.33837463,129.77,129.7,55.0995]
[1725564010486,10.97097654,129.77,129.72,7.7088]
[1725564010690,3.26507654,129.77,129.73,7.7082]
[1725564011008,10.97113127,129.77,129.72,26.9803]
[1725564011189,30.97113127,129.77,129.72,26.9803]
[1725564012002,29.63275664,129.77,129.72,26.71257937]
[1725564012306,20.0,129.77,129.73,7.7082]
[1725564012612,20.0,129.77,129.74,7.7076]
[1725564012914,1.33844731,129.76,129.74,7.7076]
[1725564013817,3.26504958,129.76,129.72,19.00387937]
[1725564014006,1.33844731,129.76,129.72,19.00387937]
[1725564014207,1.33844731,129.76,129.72,26.71227937]
[1725564014422,1.33844731,129.76,129.73,7.708]
[1725564015310,1.33844731,129.76,129.73,7.208]
[1725564017234,1.33844731,129.76,129.73,6.56718708]
[1725564018103,1.33844731,129.76,129.75,7.7071]
[1725564018622,1.33844731,129.76,129.74,26.9764]
[1725564018827,1.33844731,129.76,129.7,55.1002]
[1725564018828,7.7071,129.75,129.71,26.9822]
[1725564019021,3.26495153,129.76,129.71,26.9822]
[1725564019022,9.04514731,129.76,129.71,26.9822]
[1725564019704,9.04514731,129.76,129.72,9.25005342]
[1725564020707,9.04514731,129.76,129.73,1.54136541]
[1725564021204,9.04514731,129.76,129.72,7.7087]
[1725564021609,9.04514731,129.76,129.73,1.5413685]
[1725564022019,1.33844731,129.76,129.74,1.54129762]
[1725564022406,1.33844731,129.76,129.73,19.2706]
[1725564023231,1.33844731,129.76,129.7,74.3745]
[1725564023421,7.7077,129.74,129.7,43.5358]
[1725564023739,7.7085,129.73,129.69,7.7106]
[1725564024062,7.7078,129.74,129.7,7.71]
[1725564024422,7.7083,129.73,129.69,26.9868]
[1725564024929,7.7079,129.74,129.7,7.71]
[1725564025539,7.7083,129.73,129.69,26.9868]
[1725564026133,7.7079,129.74,129.7,7.71]
[1725564027709,1.92705027,129.73,129.66,35.9284]
[1725564028026,1.92705027,129.73,129.66,43.6408]
[1725564028027,7.7105,129.7,129.66,43.6408]
[1725564029131,7.7108,129.69,129.66,35.9284]
[1725564029440,7.7104,129.7,129.66,43.6408]
[1725564030852,7.7097,129.71,129.67,7.7117]
[1725564031149,7.7123,129.67,129.63,26.9983]
[1725564031452,20.0,129.7,129.59,66.1977]
[1725564031453,7.7137,129.64,129.6,19.3891]
[1725564031653,9.0519,129.65,129.61,7.7154]
[1725564031840,1.3388,129.65,129.6,22.18963334]
[1725564032031,1.3388,129.65,129.6,29.90543334]
[1725564032032,7.7142,129.64,129.6,29.90543334]
[1725564033025,9.052,129.65,129.6,29.90543334]
[1725564033223,9.052,129.65,129.61,7.7153]
[1725564033441,9.052,129.65,129.61,9.25803636]
[1725564033839,9.052,129.65,129.61,7.7153]
[1725564034160,1.3388,129.65,129.62,7.7144]
[1725564035544,9.0519,129.65,129.61,7.7152]
[1725564036473,7.7142,129.64,129.6,29.90553334]
[1725564037539,7.7154,129.61,129.6,2.90053334]
[1725564037734,7.7154,129.61,129.6,1.51743812]
[1725564037735,27.7154,129.61,129.6,1.51743812]
[1725564039277,19.294,129.58,129.55,15.8505267]
[1725564039434,7.7229,129.49,129.45,22.139]
[1725564039633,19.3009,129.53,129.46,7.7242]
[1725564039634,7.7219,129.51,129.46,7.7242]
[1725564039833,1.93052297,129.55,129.46,19.3103]
[1725564040056,7.7205,129.53,129.48,7.7227]
[1725564040264,7.7205,129.53,129.46,19.3103]
[1725564040265,7.7209,129.52,129.47,7.7236]
[1725564040568,7.7203,129.53,129.47,7.7233]
[1725564040748,7.7203,129.53,129.43,19.3149]
[1725564040749,46.93028339,129.52,129.43,19.3149]
[1725564040937,46.93028339,129.52,129.42,0.8505267]
[1725564040938,21.93100306,129.51,129.42,0.8505267]
[1725564041364,1.93078622,129.5,129.42,0.8505267]
[1725564041656,7.7244,129.46,129.42,0.8505267]
[1725564041860,1.93148523,129.45,129.42,0.8505267]
[1725564042049,7.725,129.45,129.42,0.8505267]
[1725564042245,45.0,129.5,129.42,0.8505267]
[1725564042246,7.7261,129.43,129.42,0.8505267]
[1725564042561,1.93163794,129.43,129.42,0.8505267]
[1725564042859,27.7261,129.43,129.42,0.8505267]
[1725564043377,1.9320813,129.46,129.42,0.8505267]
[1725564043582,21.93144924,129.49,129.42,0.8505267]
[1725564043750,1.93144954,129.48,129.42,0.8505267]
[1725564043952,7.7238,129.47,129.42,0.8505267]
[1725564044261,1.93135977,129.48,129.43,7.7261]
[1725564044477,7.722,129.5,129.42,20.1663267]
[1725564044785,1.93094017,129.49,129.42,20.1663267]
[1725564045151,7.7215,129.51,129.45,19.3124]
[1725564045366,6.1083,129.56,129.47,7.7237]
[1725564045367,1.93074688,129.5,129.47,7.7237]
[1725564045783,1.93068729,129.51,129.48,7.7231]
[1725564046079,1.93068729,129.51,129.42,0.8505267]
[1725564046563,7.7208,129.52,129.47,7.7236]
[1725564046768,1.93053204,129.51,129.42,0.8505267]
[1725564046967,1.93053564,129.55,129.43,50.0]
[1725564047281,7.7208,129.52,129.48,7.7231]
[1725564047754,7.7203,129.53,129.48,7.7231]
[1725564047952,21.9304922,129.52,129.48,7.7231]
[1725564048150,68.5567,129.57,129.48,7.7231]
[1725564048151,1.93042543,129.55,129.5,7.7219]
[1725564048376,1.93042543,129.55,129.46,6.4956]
[1725564048555,25.5481,129.6,129.46,6.4956]
[1725564048556,1.92998774,129.59,129.46,6.4956]
[1725564048756,7.7179,129.57,129.52,7.7208]
[1725564048978,1.92989892,129.56,129.52,7.7208]
[1725564049378,9.64703147,129.59,129.54,7.7194]
[1725564049551,7.7171,129.59,129.54,7.7194]
[1725564050964,7.7171,129.59,129.55,7.7189]
[1725564051354,9.64441903,129.62,129.57,7.7174]
[1725564051551,1.9291172,129.61,129.57,7.7174]
[1725564051891,7.7172,129.58,129.53,27.0194]
[1725564052179,1.9296971,129.57,129.53,27.0194]
[1725564052552,1.9296971,129.57,129.52,16.6403]
[1725564052757,21.92967074,129.6,129.53,7.7197]
[1725564052981,21.92967074,129.6,129.52,19.3009]
[1725564053485,19.2923,129.59,129.49,19.3059]
[1725564053651,45.0,129.58,129.49,19.3059]
[1725564053849,7.7191,129.55,129.51,7.7213]
[1725564054652,1.93002393,129.56,129.52,7.7207]
[1725564054885,9.64771658,129.57,129.52,7.7207]
[1725564055055,7.7178,129.57,129.52,7.7207]
[1725564056268,7.7174,129.58,129.53,7.7201]
[1725564056558,29.64756068,129.57,129.53,7.7201]
[1725564056764,27.7179,129.57,129.53,7.7201]
[1725564057374,1.92966792,129.61,129.53,19.2999]
[1725564057563,7.7188,129.56,129.51,7.7213]
[1725564057760,1.93000995,129.55,129.51,7.7213]
[1725564057963,9.64910995,129.55,129.51,7.7213]
[1725564058173,7.7191,129.55,129.51,7.7213]
[1725564058882,7.7185,129.56,129.52,7.7207]
[1725564059384,7.7185,129.56,129.51,7.7212]
[1725564059584,7.718,129.57,129.52,7.7205]
[1725564060289,7.7185,129.56,129.52,7.7205]
[1725564061581,1.92991923,129.55,129.47,15.0611]
[1725564061792,1.93029252,129.54,129.49,27.0282]
[1725564062083,1.93022132,129.56,129.49,19.306]
[1725564062387,20.0,129.57,129.47,15.0611]
[1725564062388,9.64841759,129.57,129.52,7.7204]